Cogmind - Beta 13 @@@ ROGUE MODE // 2024.04.29 @ 01:25:31 Player: Decinym Result: Destroyed by Piercing Trap Performance ------------- Evolutions (0) 0 Regions Visited (2) 400 Robots Destroyed (29) 145 Value Destroyed (999) 999 Prototype IDs (0) 0 Alien Tech Used (0) 0 Bonus (0) 0 TOTAL SCORE: 1544 Bonus ------- None Cogmind --------- Core Integrity 0/250 Matter 264/300 Energy 246/250 System Corruption 2% Temperature Cool (2) Movement Treading (240) Ox1 Location -10/Subcaves Parts ------- > --- POWER (1) -------- Ion Engine > --- PROPULSION (2) --- Light Treads > --- UTILITY (2) ------ Large Storage Unit Subdweller Optics > --- WEAPON (2) ------- Subdweller Laser Subdweller Beam Cannon > --- INVENTORY (15) --- Ion Engine Ion Engine Ion Engine Wheel Small Storage Unit Cobbler Unit Riot Gun Medium Laser Subdweller Laser Subdweller Laser Subdweller Machine Gun Subdweller Machine Gun Grenade Launcher Subdweller Shrapnel Launcher Peak State ------------ > --- POWER ------------ Ion Engine > --- PROPULSION ------- Light Treads Light Treads > --- UTILITY ---------- Large Storage Unit Subdweller Optics > --- WEAPON ----------- Subdweller Laser Subdweller Beam Cannon > --- INVENTORY -------- Ion Engine Ion Engine Ion Engine Wheel Wheel Small Storage Unit Riot Gun Medium Laser Subdweller Laser Subdweller Laser Subdweller Machine Gun Subdweller Machine Gun Grenade Launcher Subdweller Shrapnel Launcher [Rating: 12] Favorites ----------- Power Ion Engine Engine Ion Engine Propulsion Light Treads Treads Light Treads Leg Aluminum Leg Utility Large Storage Unit Device Subdweller Optics Storage Large Storage Unit Processor Targeting Computer Weapon Medium Laser Energy Gun Medium Laser Energy Cannon Subdweller Beam Cannon Ballistic Gun Light Assault Rifle Ballistic Cannon Light Cannon Launcher Grenade Launcher Build | -11 -10 -10 ------- Run | Yrd Mat Sub Slots Evolved . | . . . Power . | . . . Propulsion . | . . . Utility . | . . . Weapon . | . . . Parts Attached 27 | . 9 18 Power 4 | . 2 2 Engine 4 | . 2 2 Core . | . . . Reactor . | . . . Propulsion 6 | . 4 2 Treads 5 | . 3 2 Leg 1 | . 1 . Wheel . | . . . Hover . | . . . Flight . | . . . Utility 3 | . 2 1 Device 1 | . . 1 Storage 1 | . 1 . Processor 1 | . 1 . Hackware . | . . . Protection . | . . . Artifact . | . . . Weapon 14 | . 1 13 Energy Gun 5 | . . 5 Energy Cannon 3 | . . 3 Ballistic Gun 1 | . 1 . Ballistic Cannon 1 | . . 1 Launcher 4 | . . 4 Special Weapon . | . . . Impact Weapon . | . . . Slashing Weapon . | . . . Piercing Weapon . | . . . Special Melee Weapon . | . . . Unidentified Prototypes . | . . . Parts Lost 9 | . 3 6 Power 2 | . 1 1 Propulsion 4 | . 1 3 Utility 1 | . . 1 Weapon 2 | . 1 1 Highest Loss Streak 3 | . 1 3 To Critical Strikes . | . . . Average Slot Usage (%) 96 | . 95 98 Engine 13 | . 13 13 Treads 22 | . 17 28 Leg 3 | . 7 . Device 4 | . . 9 Storage 14 | . 14 14 Processor 8 | . 13 2 Energy Gun 12 | . 14 11 Energy Cannon 4 | . . 9 Ballistic Gun 8 | . 14 2 Launcher 1 | . . 2 Naked Turns . | . . . Heaviest Build 43 | 14 28 43 Greatest Support 40 | 20 40 40 Greatest Overweight (x) 1 | . 1 1 Average Overweight (x) . | . . . Largest Inventory Capacity 15 | . 15 15 Average Capacity 14 | . 13 15 Most Carried 15 | . 11 15 Average Carried 10 | . 8 12 Final Capacity 15 | 8 15 15 Final Carried 15 | 6 10 15 Class Distribution -------------------- 100% | Mutant Dominant Class ---------------- Mutant | -10/Materials Mutant | -10/Subcaves Resources | -11 -10 -10 ----------- Run | Yrd Mat Sub Matter Collected 851 | 193 186 472 Remotely . | . . . Salvage Created 1095 | . 589 506 Parts 51 | . 21 30 Haulers Intercepted 1 | . 1 . Recyclers Shooed . | . . . Parts Field Recycled . | . . . Retrieved Matter . | . . . Parts Self-Destructed 12 | . . 12 Prevented . | . . . Kills | -11 -10 -10 ------- Run | Yrd Mat Sub Combat Hostiles Destroyed 28 | . 14 14 Guns 16 | . 14 2 Cannons 5 | . . 5 AOE 7 | . . 7 Classes Destroyed 7 | . 3 4 Hauler 1 | . 1 . Swarmer 3 | . 3 . Grunt 15 | . 11 4 Sentry 1 | . . 1 Artisan 1 | . . 1 Cobbler 1 | . . 1 Subdweller 9 | . . 9 Best Kill Streak 3 | . 3 2 Combat Bots Only 3 | . 3 2 Max Kills in Single Turn 1 | . 1 1 Gunslinging . | . . . Exploded 1 | . . 1 Melee . | . . . Uniques/NPCs Destroyed . | . . . Combat | -11 -10 -10 -------- Run | Yrd Mat Sub Hostile Shots Fired 120 | . 65 55 Missed 28 | . 11 17 Damage Taken 1542 | . 624 918 Core 257 | . 93 164 Absorbed by Shields . | . . . Regen/Repaired (Parts) 28 | . 28 . Core Remaining (%) 100 | 100 . . Volleys Fired 100 | . 48 52 Largest 2 | . 2 2 Hottest 140 | . 70 140 Shots Fired 178 | . 95 83 Gun 136 | . 95 41 Cannon 27 | . . 27 Launcher 15 | . . 15 Special . | . . . Kinetic 80 | . 47 33 Thermal 91 | . 48 43 Explosive 7 | . . 7 Electromagnetic . | . . . Robot Hit Streak 15 | . 15 11 Robot Miss Streak 3 | . 2 3 Penetration Max . | . . . Secondary Targets 2 | . 2 . Max Gunslinging Chain 1 | . 1 . Shots Hit Robots 123 | . 72 51 Core Hits 57 | . 30 27 Critical Kills . | . . . Critical Parts Destroyed . | . . . Critical Strikes 6 | . 4 2 Burn 4 | . 4 . Blast 2 | . . 2 Melee Attacks . | . . . Impact . | . . . Slashing . | . . . Piercing . | . . . Sneak Attacks . | . . . Combat Hostiles . | . . . Follow-up Attacks . | . . . Damage Inflicted 2507 | . 830 1677 Guns 1181 | . 828 353 Cannons 386 | . . 386 Explosions 938 | . . 938 Melee . | . . . Ramming 2 | . 2 . Kinetic 1071 | . 367 704 Thermal 1007 | . 461 546 Explosive 427 | . . 427 Electromagnetic . | . . . Impact . | . . . Slashing . | . . . Piercing . | . . . Highest Corruption 2 | . 2 2 Average Corruption 2 | . 2 2 Corruption Purged . | . . . Corruption Blocked . | . . . Effects 31 | . 17 14 Message Errors 6 | . 4 2 Matter Fused 10 | . 5 5 Heat Flow Errors 3 | . 1 2 Energy Discharges 1 | . 1 . Data Loss (minor) 6 | . 4 2 Data Loss (major) 3 | . 1 2 Misfires 1 | . . 1 Alerts 1 | . 1 . Overload Shots . | . . . Overflow Damage . | . . . Projectiles . | . . . Explosions . | . . . Melee . | . . . Knockbacks 1 | . . 1 Impact . | . . . Kinetic 1 | . . 1 Secondary . | . . . Self-Inflicted Damage 24 | . . 24 Shots 1 | . . 1 Rammed 1 | . 1 . Targets Rammed 1 | . 1 . Kicked . | . . . Crushed . | . . . Highest Temperature 314 | . 195 314 Average Temperature 68 | . 73 58 Received Heat Transfer 528 | . 327 201 Siege Activations . | . . . Robots Corrupted . | . . . Combat Hostiles . | . . . Parts Fried . | . . . Impact Corruptions . | . . . Robots Melted . | . . . Combat Hostiles . | . . . Parts Melted 8 | . 5 3 Heat Transferred 2531 | . 1665 866 Parts Sabotaged . | . . . Parts Stolen . | . . . Parts Stripped . | . . . Power Chain Reactions . | . . . Alert | -11 -10 -10 ------- Run | Yrd Mat Sub Peak Influence 218 | . 218 . Initial . | . . . Average 66 | . 66 . Maximum Alert Level 1 | . 1 . Low Security (%) 93 | . 93 . Level 1 6 | . 6 . Level 2 . | . . . Level 3 . | . . . Level 4 . | . . . Level 5 . | . . . High Security . | . . . Max Security . | . . . Squads Dispatched 3 | . 3 . Investigation 2 | . 2 . Extermination . | . . . Reinforcement 1 | . 1 . Assault . | . . . Garrison . | . . . Intercept . | . . . Searches Triggered . | . . . Construction Impeded . | . . . Haulers Reinforced . | . . . Active Scanning Responses . | . . . Cargo Convoy Interrupts . | . . . Stealth | -11 -10 -10 --------- Run | Yrd Mat Sub Distress Signals 1 | . 1 . Communications Jammed . | . . . Distress Signals . | . . . Times Spotted 36 | . 20 16 Peak Tracking Total 4 | . 4 2 Tactical Retreats . | . . . Traps | -11 -10 -10 ------- Run | Yrd Mat Sub Traps Triggered 3 | . 2 1 Indirectly . | . . . Trap Hack Attempts . | . . . Triggered . | . . . Disarmed . | . . . Reprogrammed . | . . . Reused . | . . . Traps Extracted . | . . . Installed . | . . . Triggered . | . . . Machines | -11 -10 -10 ---------- Run | Yrd Mat Sub Machines Disabled . | . . . Max in Single Turn . | . . . Machines Repaired . | . . . Machines Dismantled . | . . . Machines Sabotaged . | . . . Overloaded Fab Kills . | . . . Hacking | -11 -10 -10 --------- Run | Yrd Mat Sub Machines Accessed 5 | . 5 . Terminals 4 | . 4 . Fabricators . | . . . Repair Stations 1 | . 1 . Recycling Units . | . . . Scanalyzers . | . . . Garrison Access . | . . . Total Hacks 9 | . 9 . Successful 3 | . 3 . Failed 6 | . 6 . Catastrophic 1 | . 1 . Database Lockouts . | . . . Manual . | . . . Terminals 7 | . 7 . Fabricators . | . . . Repair Stations 2 | . 2 . Recycling Units . | . . . Scanalyzers . | . . . Garrison Access . | . . . Terminal Hacks 1 | . 1 . Unreport Threat 1 | . 1 . Fabricator Hacks . | . . . Repair Station Hacks 2 | . 2 . Scan Component 1 | . 1 . Repair 1 | . 1 . Recycling Unit Hacks . | . . . Scanalyzer . | . . . Garrison Access Hacks . | . . . Unauthorized Hacks . | . . . Terminals . | . . . Fabricators . | . . . Repair Stations . | . . . Recycling Units . | . . . Scanalyzers . | . . . Garrison Access . | . . . Data Cores Recovered . | . . . Used . | . . . Hacking Detections 5 | . 5 . Full Trace Events 1 | . 1 . Feedback Events . | . . . Feedback Blocked . | . . . Robot Schematics Acquired . | . . . Robots Built . | . . . Authchips . | . . . Time . | . . . Total Robot Build Rating . | . . . Part Schematics Acquired . | . . . Parts Built . | . . . Authchips . | . . . Time . | . . . Total Part Build Rating . | . . . Parts Repaired 1 | . 1 . Time 26 | . 26 . Parts Recycled . | . . . Recycled Matter . | . . . Retrieved Matter . | . . . Retrieved Components . | . . . Parts Scanalyzed . | . . . Part Schematics Acquired . | . . . Parts Damaged . | . . . Bothacking | -11 -10 -10 ------------ Run | Yrd Mat Sub Used RIF Installer . | . . . Robots Hacked . | . . . Non-combat . | . . . Combat . | . . . Robot Hacks Applied . | . . . Relay Couplers Released . | . . . Fabnet Peak Effective % . | . . . Robots Rewired . | . . . Allies Hacked . | . . . Hacks Repelled . | . . . Allies | -11 -10 -10 -------- Run | Yrd Mat Sub Total Allies . | . . . Largest Group . | . . . Highest-Rated Group . | . . . Highest-Rated Ally . | . . . Total Orders . | . . . Ally Attacks . | . . . Total Damage . | . . . Kills . | . . . Allies Corrupted . | . . . Allies Melted . | . . . Intel | -11 -10 -10 ------- Run | Yrd Mat Sub Robot Analysis Total . | . . . Derelict Logs Recovered 1 | . . 1 Drone Launches . | . . . Drone Recoveries . | . . . Exploration | -11 -10 -10 ------------- Run | Yrd Mat Sub Turns Passed 2476 | . 1381 1095 Spaces Moved 960 | 1 397 562 Core . | . . . Treads 815 | . 253 562 Legs 145 | 1 144 . Wheels . | . . . Hover . | . . . Flight . | . . . Fastest Speed 120 | 120 120 160 Average Speed 170 | 120 176 165 Slowest Speed 240 | 120 240 240 Overloaded Moves . | . . . Propulsion Burnouts . | . . . Robots Hopped . | . . . Cave-ins Triggered . | . . . Exploration Rate (%) 47 | 2 79 62 Regions Visited 2 Branch Regions 1 Pre-discovered Areas . | . . . Known Exits Taken . | . . . Unknown Exits Taken 2 | 1 1 . Scrap Searched 8 | . . 8 Spaces Dug . | . . . Terrain Destroyed 121 | . . 121 Melee . | . . . Projectile . | . . . AOE 121 | . . 121 Terrain Rammed . | . . . Walls Destroyed . | . . . Machines Disabled . | . . . Actions | -11 -10 -10 --------- Run | Yrd Mat Sub Total 1627 | . 983 644 Wait 524 | . 521 3 Move 958 | . 396 562 Hop . | . . . Pick Up 12 | . 6 6 Fast Attach 5 | . 2 3 Attach 8 | . 4 4 Detach 1 | . . 1 Swap 14 | . 3 11 Drop 4 | . 2 2 Fire 100 | . 48 52 Melee . | . . . Ram . | . . . Kick . | . . . Crush 1 | . 1 . Escape Stasis . | . . . Rewire . | . . . Trap . | . . . Miscellaneous . | . . . Route ------- -11/Scrapyard -10/Materials (discovered 4 exits: [*Mat x2] / [*Min] / [*Sub]) -10/Subcaves (discovered 2 exits: [*Mat x2]) History --------- Turn | Location | Event 1 | -11/Scrapyard | Discovered new exit (range 0) 1 | -11/Scrapyard | Entered Materials 195 | -10/Materials | Discovered new exit (range 11) 323 | -10/Materials | Discovered new exit (range 7) 327 | -10/Materials | Build established: Mutant 496 | -10/Materials | Discovered new exit (range 3) 559 | -10/Materials | Repaired Lgt. Treads 1359 | -10/Materials | Discovered new exit (range 6) 1382 | -10/Materials | Entered Subcaves 1410 | -10/Subcaves | Discovered new exit (range 8) 1438 | -10/Subcaves | Learned 4 Materials zone layouts 1498 | -10/Subcaves | Ambushed by angry Subdweller bent on revenge 1505 | -10/Subcaves | Core integrity fell below 50% 1613 | -10/Subcaves | Lost 3 parts (1n1u1w) 1824 | -10/Subcaves | Disturbed a concealed Subdweller 1883 | -10/Subcaves | Core integrity fell below 20% 2363 | -10/Subcaves | Discovered new exit (range 11) 2371 | -10/Subcaves | Shifting Twisted Machinery released Battle Cannon 2477 | -10/Subcaves | Destroyed by Piercing Trap Last Messages --------------- 02189_ Acquired 2 matter. 02256_ System corrupted: Matter fused (-10). 02275_ System corrupted: Component data lost. 02282_ Y-45 Defender destroyed. 02286_ Heat Sink fries itself beyond repair. 02290_ Lgt. Treads fries itself beyond repair. 02291_ Imp. Ion Engine fries itself beyond repair. 02296_ Hvy. Assault Rifle fries itself beyond repair. 02297_ Beam Rifle fries itself beyond repair. 02304_ Acquired 55 matter. 02337_ System corrupted: Matter fused (-8). 02363_ EXIT=FOUND Battle Cannon falls loose from the Twisted Machinery. 02383_ SC-5T5(u) deconstructs Twisted Machinery. 02477_ Searching scrap... 02477_ Found Piercing Trap. 02477_ Found 16 Matter. 02477_ Triggered Piercing Trap. 02477_ Spikes shoot up from the floor. 02477_ Lgt. Treads destroyed. Map ----- +----------------------------------------------------+ | ?????????????????????????????????????????????????? | | ????????????????????????????????????????????###### | | ????????????????????????????????????????????# # | | ??????????????????????????????????????????### | | ??????????????????????#######???????####### #### | | ?####????######??????## ######### # | | ## #????# ######## | | # ####### # # # # ## #### # | | ## # # ############??#### | | #########???????## | | # % # # ## # ##???????# | | #### ## ## #?????# | | #?# % ####### ### #????# | | ??# ## %#????#####?###### ## #????# | | ####### #???????????????##### #???# | | ## #????????????????#### ##??# | | #???????????????## ## ??## | | ##???????????????# ## ?## | | # # #????????????????? #?## | | #### #?????????????????# ##??# | | ###### #?????????????????# #???# | | ## # #????????######??## ### ??? | | ## #?????????"<<<##? ##?# ? | | # ##?????????? ### # #### ## | | # ##???????????# <## ## #?####?# | | ## #### #????????????#@ $## ## #?????## | | ## #?## #????????????#& # ## #??????? | | # #??# #????????????### ## # #???##### | | # #?? #?????????????# #" # ###?# | | ## ##?? #?????????????# # #?# | | ## #?? ?????????????# ### | | #?? ???????????## #"" # # | | # ##? #???????????# ###< ## | | ## ### ##???????????# ## ## # | | ## #?## #??????????### ""### # # ### | | ##? #??????????#" "###?# ##### #?## | | #?# ??????????#####???# #???# #??# | | ##?# ?????????????????# ### ???# ??# | | #??? ?????????????????######?# ??# #?# | | ## #????????????????????????## ?## | | ##?# #? #?????????????????????????# #? # ## | | ##??? #? #???????????????????????????###?####### | | #??## ## #?????????????????????????????????????? | | ### #?????????????????????????????????????? | | #????????????????????????????????????? | | ## #????????????????????????????????????? | | #####????? #????????????????????????????????????? | | #???????????????????????????????????????????????? | | #????????????????????????????????????????????????? | | #????????????????????????????????????????????????? | +----------------------------------------------------+ Best States ------------- Heat Dissipation 25 Energy Generation 10 Energy Capacity 250 Matter Stores 300 Matter Capacity 300 Sight Range 21 Terrain Scan Density 10 Evasion (%) 55 Targeting Accuracy 5 Recoil Reduction 2 Item Schematics ----------------- None Robot Schematics ------------------ None Fabricated ------------ Nothing Alien Tech Used ----------------- None Achievements -------------- None Challenges ------------ None Game ------ Seed GrenadeTerrainInterpreter Manual? 0 Play Time 00:14:43 Cumulative 381.7 hours Start 2024.04.29 @ 01:15:57 End 2024.04.29 @ 01:25:31 Sessions 1 Manual Loads 0 Difficulty Rogue Special Mode None Game No. 398 Rogue 398 Adventurer 0 Explorer 0 Win Type - Total 29 Types 16/3/4/1/2/0/3/0/0 Lore% 87 Gallery% 88 Achievement% 82 Wizard Run 0 Options --------- Layout 0 ASCII 0 Keyboard 0 Movement Arrows Keybinds 0 Fullscreen 2 Font 24/Smallcaps Map View 76x50 Zoom Use 0% Tactical HUD 1 Map Filters NONE Filters NONE Steam 1 RUN: 55190577-5bfc-49cf-8ebb-7190f870809b